Workbook

Sheet Summary Prodn O&M
A1: Puget Sound Energy
A2: 2013 PCORC -- Production O&M Summary | I2: Rebuttal | J2: =I2 -> Rebuttal | K2: Change | M2: As Filed | N2: Difference
A3: Resources | B3: 2006 GRC | C3: 2007 PCORC Stlmt | D3: 2007 GRC 11/08-10/09 | E3: 2009 GRC 4/10-3/11 | F3: 2011GRC Jan10-Dec10 | G3: Test Year 10/1/11-9/30/12 | H3: Adjustments | I3: 13PCORC Nov13-Oct14 | J3: =I3 -> 13PCORC Nov13-Oct14 | K3: 13PCORC vs As Filed | L3: Adjustment Description | M3: 13PCORC Nov13-Oct14 | N3: As-Filed vs Rebuttal | O3: 13PCORC vs 11GRC
A4: Colstrip 1/2 | B4: 15629249.39 | C4: 17860432.95 | D4: 20326221.71 | E4: 19847628.25 | F4: 22677811.44 | G4: 22015483.03 | H4: -686314.4571 | I4: 21329168.57 | K4: 21329168.57 | L4: Replace test year with WECo's and PPL's rate year budget | M4: 21329168.57 | N4: 0 | O4: -1348642.863
A5: Colstrip 3/4 | B5: 15483898.75 | C5: 13324802.3 | D5: 15641283.49 | E5: 15149015.09 | F5: 17376978.48 | G5: 13941796.25 | H5: 5004593.074 | I5: 18946389.32 | K5: 18946389.32 | L5: Replace test year with WECo's and PPL's rate year budget | M5: 18946389.32 | N5: 0 | O5: 1569410.846
A6: Colstrip Settlement | B6: 0 | C6: 0 | D6: 0 | E6: 10487160.2 | F6: -345890 | G6: 0 | H6: 0 | L6: N/A - Test year has no settlements for Colstrip lawsuits. | N6: 0 | O6: 345890
A7: Encogen | B7: 3452786.025 | C7: 3186561.593 | D7: 3011269.403 | E7: 3579223.74 | F7: 4188153.3 | G7: 5316102.2 | H7: 0 | I7: 5316102.2 | K7: 5316102.2 | L7: N/A - Rate Year = Test Year . Note TY includes $0.7M non-contract major maintenance expense. | M7: 5316102.2 | N7: 0 | O7: 1127948.9
A8: Lower Baker | B8: 1556770.76 | C8: 1880666.21 | D8: 2294231.77 | E8: 2859726.41 | F8: 5653794.98 | G8: 5087914.84 | H8: 245380.0448 | I8: 5333294.885 | K8: 5333294.885 | L8: Baker labor adjustment positions added to support License Upgrades | M8: 5333294.885 | N8: 0 | O8: -320500.0952
A9: Upper Baker | B9: =5761437.96-B10 -> 2084437.96 | C9: =6448851.89333333-C10 -> 2279011.56 | D9: =6625191.69133334-D10 -> 2952546.66 | E9: =7484944.7-E10 -> 2744433.43 | F9: 1053604.85 | G9: 2338297.09 | H9: 0 | I9: 2338297.09 | K9: 2338297.09 | L9: N/A - Rate Year = Test Year | M9: 2338297.09 | N9: 0 | O9: 1284692.24
A10: Baker Licensing | B10: 3677000 | C10: 4169840.333 | D10: 3672645.031 | E10: 4740511.27 | F10: 4927789.348 | G10: 2817065.51 | H10: 818466.7152 | I10: 3635532.225 | K10: 3635532.225 | L10: Proform in Rate Year Licensing Costs | M10: 3635532.225 | N10: 0 | O10: -1292257.123
A11: Electron | B11: 2532462.63 | C11: 2814832.1 | D11: 3349441.15 | E11: 3117344.21 | F11: 3735078.12 | G11: 3540667.46 | H11: -1770333.73 | I11: 1770333.73 | K11: 1770333.73 | L11: Reduce Test Year O&M by one-half. | M11: 0 | N11: 1770333.73 | O11: -1964744.39
A12: Snoqualmie | B12: =3287469.68-B13 -> 1883469.68 | C12: =2971687.27333333-C13 -> 1958353.94 | D12: =4333718.89-D13 -> 3067718.89 | E12: =4070111.19-E13 -> 3057365.83 | F12: 1849779.74 | G12: 1941778.32 | H12: 220072.8523 | I12: 2161851.172 | K12: 2161851.172 | L12: Adjust labor to reflect additional staffing required by the Licensing upgrades. | M12: 2258424.402 | N12: -96573.22987 | O12: 312071.4323
A13: Snoqualmie Licensing | B13: 1404000 | C13: 1013333.333 | D13: 1266000 | E13: 1012745.36 | F13: 644718.8431 | G13: 349144.12 | H13: 293765.7872 | I13: 642909.9072 | K13: 642909.9072 | L13: Proform in Rate Year Licensing Costs | M13: 642909.9072 | N13: 0 | O13: -1808.935947
A14: White River | B14: 355699.65 | C14: 355700 | D14: 355700 | E14: 278249.1935 | F14: 0 | G14: 0 | H14: 0 | I14: 0 | K14: 0 | L14: N/A - Plant no longer in service | M14: 0 | N14: 0 | O14: 0
A15: Ferndale | B15: 0 | C15: 0 | D15: 0 | E15: 0 | F15: 0 | G15: 0 | H15: 6855441.026 | I15: 6855441.026 | L15: Proform rate year production O&M for new resource acquired November 2012. | M15: 6855441.026 | N15: 0 | O15: 6855441.026
A16: Freddie 1 | B16: 5397797.552 | C16: 5534926.73 | D16: 4769538.04 | E16: 4175978.28 | F16: 4238135.106 | G16: 4025670.98 | H16: 200076.3554 | I16: 4225747.335 | K16: 4225747.335 | L16: Proform rate year to Atlantic Power's (formerly Capital Power, formerly EPCOR) budget. | M16: 4225747.335 | N16: 0 | O16: -12387.77075
A17: Crystal | B17: 220325.26 | C17: 644796.09 | D17: 915715.27 | E17: 213978.14 | F17: 111244.36 | G17: 141669.42 | H17: 0 | I17: 141669.42 | K17: 141669.42 | L17: N/A - Rate Year = Test Year | M17: 141669.42 | N17: 0 | O17: 30425.06
A18: Goldendale | B18: 0 | C18: 8733578.363 | D18: 9173868.041 | E18: 6320161.99 | F18: 6208819.81 | G18: 6886874.67 | H18: -918152.64 | I18: 5968722.03 | K18: 5968722.03 | L18: Remove Test Year Major Maintenance Amortization as none in RY. | M18: 5968722.03 | N18: 0 | O18: -240097.78
A19: Mint Farm | B19: 0 | C19: 0 | D19: 0 | E19: 5215032.933 | F19: 7513845.43 | G19: 5874894.86 | H19: 178450.58 | I19: 6053345.44 | K19: 6053345.44 | L19: Proform in Rate Year major maintenance amortization expense. | M19: 6053345.44 | N19: 0 | O19: -1460499.99
A20: Whitehorn | B20: 536561.7113 | C20: 1553557.593 | D20: 1861991.421 | E20: 1159774.95 | F20: 1084012.03 | G20: 2308893.65 | H20: 0 | I20: 2308893.65 | K20: 2308893.65 | L20: N/A - Rate Year = Test Year | M20: 2308893.65 | N20: 0 | O20: 1224881.62
A21: Frederickson | B21: 596024.6409 | C21: 443166.4257 | D21: 1777792.778 | E21: 1301403.15 | F21: 6909823.11 | G21: 5373877.91 | H21: 0 | I21: 5373877.91 | K21: 5373877.91 | L21: N/A - Rate Year = Test Year. Note TY includes $4.2M non-contract major maintenance expense. | M21: 5373877.91 | N21: 0 | O21: -1535945.2
A22: Fredonia 1-4 | B22: 773148.5924 | C22: 1033436.182 | D22: 2261698.01 | E22: 1130103.22 | F22: 3579096.3 | G22: 2429448.25 | H22: 0 | I22: 2429448.25 | K22: 2429448.25 | L22: N/A - Rate Year = Test Year Note: TY includes $0.3M non-contract major maintenance expense. | M22: 2429448.25 | N22: 0 | O22: -1149648.05
A23: Sumas | B23: 0 | C23: 0 | D23: 3644858.82 | E23: 3594194.17 | F23: 5409130.049 | G23: 5129895.5 | H23: -396857.05 | I23: 4733038.45 | K23: 4733038.45 | L23: Remove Test Year Major Maintenance Amortization as none in RY. | M23: 4733038.45 | N23: 0 | O23: -676091.5987
A24: Other | B24: =565166.02+657.15+2394.6 -> 568217.77 | C24: 755467.99 | D24: 542964.05 | E24: 2758806.97 | F24: 4198990.64 | G24: 5636135.15 | H24: -941043.8277 | I24: 4695091.322 | K24: 4695091.322 | L24: Adjust for Jackson Prairie Storage and Remove LSR Phase 2-5 costs. | M24: 4695091.322 | N24: 0 | O24: 496100.6823
A25: Hopkins Ridge + Expansion | B25: 4730250 | C25: 4809726.175 | D25: 4320202.108 | E25: 5600937.976 | F25: 6945862.379 | G25: 6732323.37 | H25: 646101.8989 | I25: 7378425.269 | K25: 7378425.269 | L25: Proform rate year Vestas contract + Royalties based on RY MWhs | M25: 7378425.269 | N25: 0 | O25: 432562.89
A26: Wild Horse | B26: 9921353.72 | C26: 10086020.59 | D26: 10510448.89 | E26: =12444759.0581349-E27 -> 10492918.29 | F26: 11485618.93 | G26: 11335786.51 | H26: 582717.601 | I26: 11918504.11 | K26: 11918504.11 | L26: Proform rate year Vestas contract + Royalties based on RY MWhs | M26: 11918504.11 | N26: 0 | O26: 432885.1829
A27: Wild Horse Expansion | B27: 0 | C27: 0 | D27: 0 | E27: 1951840.771 | F27: 1577516.797 | G27: 1578623.05 | H27: 13372.69059 | I27: 1591995.741 | K27: 1591995.741 | L27: Proform rate year Vestas contract + Royalties based on RY MWhs | M27: 1591995.741 | N27: 0 | O27: 14478.94393
A28: Lower Snake River | B28: 0 | C28: 0 | D28: 0 | E28: 0 | F28: 10891022.51 | G28: 5910744.43 | H28: 5054067.952 | I28: 10964812.38 | K28: 10964812.38 | L28: Proform in rate year for new resource. | M28: 10964812.38 | N28: 0 | O28: 73789.87543
A29: Whitehorn Lease | B29: 1738274.197 | C29: 1739879.251 | D29: 434969.8129 | E29: 0 | F29: 0 | G29: 0 | H29: 0 | I29: 0 | K29: 0 | L29: N/A | M29: 0 | N29: 0 | O29: 0
A30: Fredonia Lease | B30: 6482272.389 | C30: 6469556.454 | D30: 5194105.337 | E30: 0 | F30: 0 | G30: 0 | H30: 0 | I30: 0 | K30: 0 | L30: N/A | M30: 0 | N30: 0 | O30: 0
A31: Sys Control & Dispatch | B31: 1094878.29 | C31: 1086070 | D31: 1098736.76 | E31: 1408276.46 | F31: 1698447.94 | G31: 533731.63 | H31: 0 | I31: 533731.63 | K31: 533731.63 | L31: N/A - Rate Year = Test Year | M31: 533731.63 | N31: 0 | O31: -1164716.31
A32: Prod. O&M incl. Benefits/Taxes | B32: =SUM(B4:B31) -> 80118878.97 | C32: 91733716.17 | D32: 102443947.4 | E32: =SUM(E4:E31) -> 112196810.3 | F32: =SUM(F4:F31) -> 133613384.5 | G32: =SUM(G4:G31) -> 121246818.2 | H32: 15399804.87 | I32: 136646623.1 | J32: 0 | K32: 129791182 | M32: =SUM(M4:M31) -> 134972862.6 | N32: =SUM(N4:N31) -> 1673760.5 | O32: 3033238.592
B33: =80118879-B32 -> 0.03067536652 | C33: =91733716-C32 -> -0.1662649512 | D33: =102443947.438278-D32 -> 0 | E33: =112196810-E32 -> -0.2830102593
A35: Coal | B35: =SUM(B4:B6) -> 31113148.14 | C35: 31185235.25 | D35: 35967505.2 | E35: =SUM(E4:E6) -> 45483803.54 | F35: 39708899.91 | G35: 35957279.28 | H35: 4318278.617 | I35: 40275557.9 | J35: 0 | K35: 45591660.1 | O35: 566657.9831
A36: Gas Fired Turbines | B36: =SUM(B7,B16:B23) -> 10976643.78 | C36: 21130022.98 | D36: 27416731.78 | E36: 26689850.57 | F36: 39242259.49 | G36: 37487327.44 | H36: 5918958.271 | I36: 43406285.71 | J36: 0 | K36: 37037381.36 | O36: 4164026.216
A37: Hydro | B37: =SUM(B8:B14) -> 13493840.68 | C37: 14471737.48 | D37: 16958283.5 | E37: 17810375.7 | F37: 17864765.88 | G37: 16074867.34 | H37: -192648.3305 | I37: 15882219.01 | J37: 0 | K37: 14774671.46 | O37: -1982546.872
A38: Wind | B38: =SUM(B25:B27) -> 14651603.72 | C38: =SUM(C25:C27) -> 14895746.76 | D38: =SUM(D25:D27) -> 14830651 | E38: =SUM(E25:E28) -> 18045697.03 | F38: 30900020.61 | G38: 25557477.36 | H38: 6296260.142 | I38: 31853737.5 | J38: 0 | K38: 24475312.23 | O38: 953716.8922
A39: Other | B39: =SUM(B24,B29:B31) -> 9883642.646 | C39: 10050973.7 | D39: 7270775.959 | E39: 4167083.43 | F39: 5897438.58 | G39: 6169866.78 | H39: -941043.8277 | I39: 5228822.952 | J39: 0 | K39: 7912156.899 | O39: -668615.6277
A40: Prod. O&M incl. Benefits/Taxes | B40: =SUM(B35:B39) -> 80118878.97 | C40: 91733716.17 | D40: 102443947.4 | E40: =SUM(E35:E39) -> 112196810.3 | F40: =SUM(F35:F39) -> 133613384.5 | G40: =SUM(G35:G39) -> 121246818.2 | H40: 15399804.87 | I40: 136646623.1 | J40: 0 | K40: 129791182 | O40: =SUM(O35:O39) -> 3033238.592
F45: =ROUND(F33+O41+F41+#REF!+#REF!+#REF!+#REF!+#REF!+#REF!+#REF!+#REF!+#REF!+#REF!,0) -> 
